Cogmind - Beta 10.1 @@@ ROGUE MODE // 2020.12.10 @ 21:41:20 Player: S0ZDATEL Result: Destroyed by Y-45 Defender with Heavy Assault Rifle Performance ------------- Evolutions (1) 500 Regions Visited (3) 600 Robots Destroyed (10) 50 Value Destroyed (296) 296 Prototype IDs (0) 0 Alien Tech Used (0) 0 Bonus (0) 0 TOTAL SCORE: 1446 Bonus ------- None Cogmind --------- Core Integrity 0/400 Matter 300/300 Energy 100/100 System Corruption 0% Temperature Cool (9) Movement Core (600) Ox11 Location -9/Storage Parts ------- > --- POWER (1) -------- (None) > --- PROPULSION (3) --- (None) > --- UTILITY (3) ------ Small Storage Unit Large Storage Unit Large Storage Unit > --- WEAPON (2) ------- (None) > --- INVENTORY (18) --- Medium Storage Unit Terrain Scan Processor Light Armor Plating Assault Rifle Light Assault Rifle Grenade Launcher Peak State ------------ > --- POWER ------------ Ion Engine > --- PROPULSION ------- Light Treads Wheel Compact Wheel > --- UTILITY ---------- Small Storage Unit Large Storage Unit Large Storage Unit > --- WEAPON ----------- EM Pulse Gun Heavy Assault Rifle > --- INVENTORY -------- Light Ion Engine Aluminum Leg Medium Storage Unit Terrain Scan Processor Light Armor Plating Beam Rifle Light Assault Rifle Grenade Launcher [Rating: 11] Favorites ----------- Power Ion Engine Engine Ion Engine Propulsion Compact Wheel Treads Light Treads Leg Aluminum Leg Wheel Compact Wheel Utility Large Storage Unit Device Terrain Scanner Storage Large Storage Unit Weapon EM Pulse Gun Energy Gun EM Pulse Gun Ballistic Gun Assault Rifle Build | -11 -10 -9 -9 ------- Run | Scr Mat Mat Sto Slots Evolved 2 | . . 2 . Power . | . . . . Propulsion 1 | . . 1 . Utility 1 | . . 1 . Weapon . | . . . . Parts Attached 18 | 6 4 5 3 Power 3 | 1 1 . 1 Engine 3 | 1 1 . 1 Core . | . . . . Reactor . | . . . . Propulsion 5 | 2 . 2 1 Treads 1 | . . 1 . Leg 2 | . . 1 1 Wheel 2 | 2 . . . Hover . | . . . . Flight . | . . . . Utility 4 | 1 1 2 . Device 1 | . 1 . . Storage 3 | 1 . 2 . Processor . | . . . . Hackware . | . . . . Protection . | . . . . Artifact . | . . . . Weapon 6 | 2 2 1 1 Energy Gun 3 | 1 1 . 1 Energy Cannon . | . . . . Ballistic Gun 3 | 1 1 1 . Ballistic Cannon . | . . . . Launcher . | . . . . Special Weapon . | . . . . Impact Weapon . | . . . . Slashing Weapon . | . . . . Piercing Weapon . | . . . . Special Melee Weapon . | . . . . Unidentified Prototypes . | . . . . Parts Lost 9 | . . . 9 Power 2 | . . . 2 Propulsion 4 | . . . 4 Utility . | . . . . Weapon 3 | . . . 3 Highest Loss Streak 5 | . . . 5 Average Slot Usage (%) 85 | . 90 90 82 Engine 7 | . 12 11 3 Treads 5 | . . 3 9 Leg 5 | . . 7 6 Wheel 17 | . 28 22 12 Device 3 | . 8 8 . Storage 24 | . 14 15 33 Energy Gun 10 | . 12 11 9 Ballistic Gun 10 | . 14 11 9 Naked Turns . | . . . . Heaviest Build 46 | 13 14 46 46 Greatest Support 26 | 10 10 26 26 Greatest Overweight (x) 12 | 1 1 3 12 Average Overweight (x) 1 | . . 1 2 Largest Inventory Capacity 18 | 6 6 18 18 Average Capacity 11 | 5 6 8 18 Most Carried 9 | 6 6 9 9 Average Carried 5 | 4 5 4 6 Final Capacity 18 | 6 6 18 18 Final Carried 9 | 6 5 9 6 Class Distribution -------------------- 100% | Mutant Dominant Class ---------------- Mutant | -10/Materials Mutant | -9/Materials Mutant | -9/Storage Resources | -11 -10 -9 -9 ----------- Run | Scr Mat Mat Sto Matter Collected 452 | 272 . 120 60 Remotely . | . . . . Salvage Created 429 | 103 . 120 206 Parts 31 | 8 . 7 16 Haulers Intercepted . | . . . . Recyclers Shooed . | . . . . Parts Field Recycled . | . . . . Retrieved Matter . | . . . . Parts Self-Destructed . | . . . . Prevented . | . . . . Kills | -11 -10 -9 -9 ------- Run | Scr Mat Mat Sto Combat Hostiles Destroyed 6 | . . 2 4 Guns 6 | . . 2 4 Classes Destroyed 5 | 2 . 1 2 Tunneler 2 | 2 . . . Recycler 1 | 1 . . . Watcher 1 | . . . 1 Grunt 3 | . . . 3 Sentry 3 | . . 2 1 Best Kill Streak 4 | 2 . 1 4 Combat Bots Only 4 | . . 1 4 Max Kills in Single Turn 1 | 1 . 1 1 Gunslinging . | . . . . Exploded . | . . . . Melee . | . . . . Uniques/NPCs Destroyed . | . . . . Combat | -11 -10 -9 -9 -------- Run | Scr Mat Mat Sto Damage Taken 1345 | . . 211 1134 Core 407 | . . 28 379 Absorbed by Shields . | . . . . Core Remaining (%) 100 | 100 100 . . Volleys Fired 40 | 10 . 12 18 Largest 2 | 2 . 2 2 Hottest 79 | 60 . 60 79 Shots Fired 80 | 20 . 24 36 Gun 80 | 20 . 24 36 Cannon . | . . . . Launcher . | . . . . Special . | . . . . Kinetic 40 | 10 . 12 18 Thermal 6 | . . . 6 Explosive . | . . . . Electromagnetic 34 | 10 . 12 12 Robot Hit Streak 8 | 8 . 8 4 Robot Miss Streak 3 | 1 . 3 3 Penetration Max . | . . . . Secondary Targets 1 | . . . 1 Max Gunslinging Chain 1 | . . . 1 Shots Hit Robots 49 | 16 . 12 21 Core Hits 19 | 4 . 4 11 Critical Hits . | . . . . Critical Kills . | . . . . Critical Parts Destroyed . | . . . . Melee Attacks . | . . . . Impact . | . . . . Slashing . | . . . . Piercing . | . . . . Sneak Attacks . | . . . . Combat Hostiles . | . . . . Follow-up Attacks . | . . . . Damage Inflicted 749 | 217 . 129 403 Guns 746 | 217 . 129 400 Cannons . | . . . . Explosions . | . . . . Melee . | . . . . Ramming 3 | . . . 3 Kinetic 348 | 77 . 71 200 Thermal 57 | . . . 57 Explosive . | . . . . Electromagnetic 341 | 140 . 58 143 Impact . | . . . . Slashing . | . . . . Piercing . | . . . . Highest Corruption . | . . . . Average Corruption . | . . . . Corruption Purged . | . . . . Overload Shots . | . . . . Overflow Damage . | . . . . Projectiles . | . . . . Explosions . | . . . . Melee . | . . . . Knockbacks . | . . . . Impact . | . . . . Kinetic . | . . . . Secondary . | . . . . Self-Inflicted Damage . | . . . . Shots . | . . . . Rammed 3 | . . . 3 Targets Rammed 3 | . . . 3 Kicked . | . . . . Crushed . | . . . . Highest Temperature 45 | . . 9 45 Average Temperature 15 | . . 4 20 Received Heat Transfer 408 | . . 72 336 Siege Activations . | . . . . Robots Corrupted . | . . . . Combat Hostiles . | . . . . Parts Fried . | . . . . Impact Corruptions . | . . . . Robots Melted . | . . . . Combat Hostiles . | . . . . Parts Melted . | . . . . Heat Transferred 148 | . . . 148 Parts Sabotaged . | . . . . Parts Stolen . | . . . . Parts Stripped . | . . . . Power Chain Reactions . | . . . . Missiles Intercepted . | . . . . Alert | -11 -10 -9 -9 ------- Run | Scr Mat Mat Sto Peak Influence 246 | 15 9 93 246 Initial 39 | . 9 3 39 Average 93 | 2 9 67 168 Maximum Alert Level 1 | . . . 1 Low Security (%) 79 | 100 100 100 55 Level 1 20 | . . . 44 Level 2 . | . . . . Level 3 . | . . . . Level 4 . | . . . . Level 5 . | . . . . High Security . | . . . . Max Security . | . . . . Squads Dispatched 1 | . . . 1 Investigation . | . . . . Extermination . | . . . . Reinforcement 1 | . . . 1 Assault . | . . . . Garrison . | . . . . Intercept . | . . . . Construction Impeded . | . . . . Haulers Reinforced . | . . . . Stealth | -11 -10 -9 -9 --------- Run | Scr Mat Mat Sto Distress Signals 3 | . . . 3 Communications Jammed . | . . . . Distress Signals . | . . . . Times Spotted 17 | . . 2 15 Peak Tracking Total 5 | . . 1 5 Tactical Retreats 1 | . . . 1 Traps | -11 -10 -9 -9 ------- Run | Scr Mat Mat Sto Traps Triggered 2 | . 1 . 1 Indirectly . | . . . . Trap Hack Attempts . | . . . . Triggered . | . . . . Disarmed . | . . . . Reprogrammed . | . . . . Reused . | . . . . Traps Extracted . | . . . . Installed . | . . . . Triggered . | . . . . Machines | -11 -10 -9 -9 ---------- Run | Scr Mat Mat Sto Machines Disabled 1 | . . . 1 Max in Single Turn 1 | . . . 1 Machines Sabotaged . | . . . . Garrisons Compromised . | . . . . Overloaded Fab Kills . | . . . . Fab Network Shutdowns . | . . . . Hacking | -11 -10 -9 -9 --------- Run | Scr Mat Mat Sto Machines Accessed 1 | . . . 1 Terminals 1 | . . . 1 Fabricators . | . . . . Repair Stations . | . . . . Recycling Units . | . . . . Scanalyzers . | . . . . Garrison Access . | . . . . Total Hacks 3 | . . . 3 Successful 2 | . . . 2 Failed 1 | . . . 1 Catastrophic . | . . . . Database Lockouts . | . . . . Manual 3 | . . . 3 Terminals 3 | . . . 3 Fabricators . | . . . . Repair Stations . | . . . . Recycling Units . | . . . . Scanalyzers . | . . . . Garrison Access . | . . . . Terminal Hacks . | . . . . Fabricator Hacks . | . . . . Repair Station Hacks . | . . . . Recycling Unit Hacks . | . . . . Scanalyzer . | . . . . Garrison Access Hacks . | . . . . Unauthorized Hacks 2 | . . . 2 Terminals 2 | . . . 2 Assimilate 1 | . . . 1 Botnet 1 | . . . 1 Fabricators . | . . . . Repair Stations . | . . . . Recycling Units . | . . . . Scanalyzers . | . . . . Garrison Access . | . . . . Data Cores Recovered . | . . . . Used . | . . . . Hacking Detections 1 | . . . 1 Full Trace Events . | . . . . Feedback Events . | . . . . Feedback Blocked . | . . . . Robot Schematics Acquired . | . . . . Robots Built . | . . . . Matter . | . . . . Time . | . . . . Total Robot Build Rating . | . . . . Part Schematics Acquired . | . . . . Parts Built . | . . . . Matter . | . . . . Time . | . . . . Total Part Build Rating . | . . . . Parts Repaired . | . . . . Time . | . . . . Parts Recycled . | . . . . Recycled Matter . | . . . . Retrieved Matter . | . . . . Retrieved Components . | . . . . Parts Scanalyzed . | . . . . Part Schematics Acquired . | . . . . Parts Damaged . | . . . . Bothacking | -11 -10 -9 -9 ------------ Run | Scr Mat Mat Sto Used RIF Installer . | . . . . Robots Hacked . | . . . . Non-combat . | . . . . Combat . | . . . . Robot Hacks Applied . | . . . . Relay Couplers Released . | . . . . Robots Rewired . | . . . . Allies Hacked . | . . . . Hacks Repelled . | . . . . Allies | -11 -10 -9 -9 -------- Run | Scr Mat Mat Sto Total Allies . | . . . . Largest Group . | . . . . Highest-Rated Group . | . . . . Highest-Rated Ally . | . . . . Total Orders . | . . . . Ally Attacks . | . . . . Total Damage . | . . . . Kills . | . . . . Allies Corrupted . | . . . . Allies Melted . | . . . . Intel | -11 -10 -9 -9 ------- Run | Scr Mat Mat Sto Robot Analysis Total . | . . . . Derelict Logs Recovered . | . . . . Drone Launches . | . . . . Drone Recoveries . | . . . . Exploration | -11 -10 -9 -9 ------------- Run | Scr Mat Mat Sto Turns Passed 488 | 84 78 100 226 Spaces Moved 294 | 45 78 55 116 Core 10 | 6 . . 4 Treads . | . . . . Legs . | . . . . Wheels 284 | 39 78 55 112 Hover . | . . . . Flight . | . . . . Fastest Speed 50 | 50 80 90 100 Average Speed 105 | 85 89 92 130 Slowest Speed 650 | 100 90 110 650 Overloaded Moves . | . . . . Propulsion Burnouts . | . . . . Robots Hopped . | . . . . Cave-ins Triggered . | . . . . Exploration Rate (%) 18 | 3 24 6 40 Regions Visited 3 Branch Regions 1 Pre-discovered Areas . | . . . . Known Exits Taken . | . . . . Unknown Exits Taken 3 | 1 1 1 . Scrap Searched . | . . . . Spaces Dug . | . . . . Terrain Destroyed . | . . . . Melee . | . . . . Projectile . | . . . . AOE . | . . . . Terrain Rammed . | . . . . Walls Destroyed . | . . . . Machines Disabled . | . . . . Actions | -11 -10 -9 -9 --------- Run | Scr Mat Mat Sto Total 374 | 67 84 79 144 Wait 5 | 1 . . 4 Move 291 | 44 77 54 116 Hop . | . . . . Pick Up 12 | 6 1 5 . Fast Attach 14 | 6 4 4 . Attach 4 | . . 1 3 Detach . | . . . . Swap . | . . . . Drop 5 | . 2 3 . Fire 40 | 10 . 12 18 Melee . | . . . . Ram 3 | . . . 3 Kick . | . . . . Crush . | . . . . Escape Stasis . | . . . . Rewire . | . . . . Trap . | . . . . Miscellaneous . | . . . . Route ------- -11/Scrapyard -10/Materials -9/Materials -9/Storage History --------- Turn | Location | Event 15 | -11/Scrapyard | Discovered new exit (range 15) 85 | -11/Scrapyard | Entered Materials 154 | -10/Materials | Discovered new exit (range 5) 163 | -10/Materials | Entered another Materials area 163 | -9/Materials | Evolved 2 slots: Propulsion x1, Utility x1 190 | -9/Materials | Discovered new exit (range 15) 263 | -9/Materials | Entered Storage 306 | -9/Storage | Build established: Mutant 372 | -9/Storage | Lost 4 parts (2p1n1w) 459 | -9/Storage | Core integrity fell below 50% 477 | -9/Storage | Core integrity fell below 20% 489 | -9/Storage | Lost 5 parts (3n2w) 489 | -9/Storage | Destroyed by Y-45 Defender with Heavy Assault Rifle Last Messages --------------- 00393_ K-01 Serf collects debris. 00403_ U-05 Engineer lays Concrete. 00403_ K-01 Serf collects debris. 00412_ Triggered EMP Trap. 00412_ A bubble of electromagnetic force engulfs the area. 00412_ Door malfunctions. 00427_ U-05 Engineer lays Concrete. 00437_ U-05 Engineer repairs door. 00440_ Beam Rifle destroyed. 00443_ Lgt. Treads destroyed. 00447_ U-05 Engineer lays Concrete. 00451_ Com. Wheel destroyed. 00452_ Hvy. Assault Rifle destroyed. 00458_ Aluminum Leg destroyed. 00458_ Slammed into U-05 Engineer. 00464_ Slammed into Y-45 Defender. 00474_ U-05 Engineer builds a Door. 00478_ W-16 Scout sends out distress signal. 00483_ R-06 Scavenger collects Imp. Ion Engine. 00486_ R-06 Scavenger collects Hvy. Assault Rifle. Map ----- +----------------------------------------------------+ | ?????????????????????????????????????????????????? | | ?????????????????????????????????????????????????? | | ?????????????????????????????????????????????????? | | ?????????????????????????????????????????????????? | | ?????????????????????????????????????????????????? | | ?????????????????????????????????????????????????? | | ???????????????????????##??#####?????????????????? | | ??????????????????###### ### #?????????????????? | | ??????????????????# # #?????????????????? | | ??????????????????#""" # #?????????????????? | | ??????????????????#""" # #?????????????????? | | ??????????????????#""" # #?????????????????? | | ??????????????????#""" / #??????#####??????? | | ??????????????????#""" # #??????#"""#??????? | | ??????????????????# # #??#####"Y"###????? | | ??????????????????# # #??# #????? | | ??????????????????# # #??# #????? | | ?????????????????########### #??# #????? | | ?????????????????# # #??# #????? | | ????????????????"" T # #??# """ """ #????? | | ????????????????"T # #?## """ """ #????? | | ?????????????????" # #?# """ """ #????? | | ???????????????????""" """ + #?## #???## | | ????????????????? """ """ # ########+#########" | | ?????????????????#Y""" """ #% k *= [! | | ?????????????????# @ Y % g g [=!%= | | ?????????????????########### w u o [%* [ | | ?????????????????????????####+########+## = =%! | | ?????????????????????????# # # | | ?????????????????????????# """ # # """ | | ????????????????????????# """ # # """ | | ????????????????????????## """ # # """ | | ?????????????????????????# # """ + | | ?????????????????????????# """ # """ # | | ?????????????????????????# """ # """ ########## | | ?????????????????????????#???? # #????????? | | ?????????????????????????????? # """ #????????? | | ??????????????????????????????##### """ #????????? | | ??????????????????????????????????????? #????????? | | ??????????????????????????????????????? #????????? | | ???????????????????????????????????????##????????? | | ?????????????????????????????????????????????????? | | ?????????????????????????????????????????????????? | | ?????????????????????????????????????????????????? | | ?????????????????????????????????????????????????? | | ?????????????????????????????????????????????????? | | ?????????????????????????????????????????????????? | | ?????????????????????????????????????????????????? | | ?????????????????????????????????????????????????? | | ?????????????????????????????????????????????????? | +----------------------------------------------------+ Best States ------------- Heat Dissipation 28 Energy Generation 10 Energy Capacity 250 Matter Stores 300 Matter Capacity 300 Sight Range 16 Terrain Scan Range 14 Terrain Scan Density 10 Evasion (%) 42 Item Schematics ----------------- None Robot Schematics ------------------ None Fabricated ------------ Nothing Alien Tech Used ----------------- None Achievements -------------- None Challenges ------------ None Game ------ Seed SeismicNetworkRefractor Manual? 0 Play Time 00:09:36 Cumulative 3.9 hours Start 2020.12.10 @ 21:33:58 End 2020.12.10 @ 21:41:20 Sessions 1 Manual Loads 0 Difficulty Rogue Special Mode None Game No. 4 Rogue 4 Adventurer 0 Explorer 0 Win Type - Total 0 Types 0/0/0/0/0/0/0/0/0 Lore% 8 Gallery% 9 Achievement% 14 Wizard Run 0 Options --------- ASCII 0 Keyboard 0 Movement Numpad Keybinds 0 Fullscreen 1 Font 12/Smallcaps Map View 83x54 Tactical HUD 1 Map Filters NONE Filters NONE Steam X RUN: 367424c0-ba5f-49e7-a108-353c3f68e4dc